fUSD/lending_fUSD_20240424
["ID","MTS","AMOUNT","RATE_DAILY","PERIOD"]
[323406761,1713972636344,-498.29522645,0.00010958,2]
[323406762,1713972636354,-555.67,0.00010958,2]
[323406763,1713972636364,-500.0,0.00010958,2]
[323406764,1713972636373,-500.0,0.00010958,2]
[323406765,1713972636383,-500.0,0.00010958,2]
[323406766,1713972636393,-2694.11,0.00010958,2]
[323406767,1713972636403,-500.0,0.00010958,2]
[323406768,1713972636413,-500.0,0.00010958,2]
[323406769,1713972636422,-500.0,0.00010958,2]
[323406770,1713972636432,-923.07,0.00010958,2]
[323406771,1713972636441,-500.0,0.00010958,2]
[323406772,1713972636451,-152.71750879,0.00010958,2]
[323406773,1713972636460,-500.0,0.00010958,2]
[323406774,1713972636470,-500.0,0.00010958,2]
[323406775,1713972636479,-500.0,0.00010958,2]
[323406776,1713972636489,-500.0,0.00010958,2]
[323406777,1713972636499,-500.0,0.00010958,2]
[323406778,1713972636508,-500.0,0.00010958,2]
[323406779,1713972636517,-500.0,0.00010958,2]
[323406780,1713972636528,-500.0,0.00010958,2]
[323406781,1713972636537,-500.0,0.00010958,2]
[323406782,1713972636546,-500.0,0.00010958,2]
[323406783,1713972636555,-500.0,0.00010958,2]
[323406784,1713972636564,-500.0,0.00010958,2]
[323406785,1713972636574,-921.33,0.00010958,2]
[323406786,1713972636584,-500.0,0.00010958,2]
[323406787,1713972636593,-500.0,0.00010958,2]
[323406788,1713972636603,-517.06,0.00010958,2]
[323406789,1713972636613,-500.0,0.00010958,2]
[323406790,1713972636623,-837.17,0.00010958,2]
[323406791,1713972636632,-500.0,0.00010958,2]
[323406792,1713972636642,-1230.56,0.00010958,2]
[323406793,1713972636651,-500.0,0.00010958,2]
[323406794,1713972636661,-500.0,0.00010958,2]
[323406795,1713972636670,-500.0,0.00010958,2]
[323406796,1713972636680,-500.0,0.00010958,2]
[323406797,1713972636693,-529.79,0.00010958,2]
[323406798,1713972636702,-500.0,0.00010958,2]
[323406799,1713972636714,-500.0,0.00010958,2]
[323406800,1713972636723,-500.0,0.00010958,2]
[323406801,1713972636733,-719.93,0.00010958,2]
[323406802,1713972636743,-500.0,0.00010958,2]
[323406803,1713972636753,-648.44,0.00010958,2]
[323406804,1713972636763,-500.0,0.00010958,2]
[323406805,1713972636775,-500.0,0.00010958,2]
[323406806,1713972636785,-500.0,0.00010958,2]
[323406807,1713972636797,-500.0,0.00010958,2]
[323406808,1713972636808,-500.0,0.00010958,2]
[323406809,1713972636824,-500.0,0.00010958,2]
[323406810,1713972636835,-500.0,0.00010958,2]
[323406811,1713972636846,-500.0,0.00010958,2]
[323406812,1713972636857,-500.0,0.00010958,2]
[323406813,1713972636868,-500.0,0.00010958,2]
[323406814,1713972636879,-500.0,0.00010958,2]
[323406815,1713972636890,-810.29,0.00010958,2]
[323406816,1713972636901,-500.0,0.00010958,2]
[323406817,1713972636911,-500.0,0.00010958,2]
[323406818,1713972636921,-657.61,0.00010958,2]
[323406819,1713972636932,-1000.93,0.00010958,2]
[323406820,1713972636943,-565.85,0.00010958,2]
[323406821,1713972636953,-500.0,0.00010958,2]
[323406822,1713972636963,-500.0,0.00010958,2]
[323406823,1713972636974,-500.0,0.00010958,2]
[323406824,1713972636984,-520.21,0.00010958,2]
[323406825,1713972636993,-500.0,0.00010958,2]
[323406826,1713972637003,-2401.63,0.00010958,2]
[323406827,1713972637013,-500.0,0.00010958,2]
[323406828,1713972637027,-500.0,0.00010958,2]
[323406829,1713972637037,-500.0,0.00010958,2]
[323406830,1713972637047,-500.0,0.00010958,2]
[323406831,1713972637057,-500.0,0.00010958,2]
[323406832,1713972637067,-500.0,0.00010958,2]
[323406833,1713972637077,-592.75,0.00010958,2]
[323406834,1713972637087,-500.0,0.00010958,2]
[323406835,1713972637097,-500.0,0.00010958,2]
[323406836,1713972637108,-500.0,0.00010958,2]
[323406837,1713972637118,-500.0,0.00010958,2]
[323406838,1713972637128,-500.0,0.00010958,2]
[323406839,1713972637138,-500.0,0.00010958,2]
[323406840,1713972637147,-500.0,0.00010958,2]
[323406841,1713972637158,-500.0,0.00010958,2]
[323406842,1713972637167,-500.0,0.00010958,2]
[323406843,1713972637177,-500.0,0.00010958,2]
[323406844,1713972637187,-500.0,0.00010958,2]
[323406845,1713972637197,-500.0,0.00010958,2]
[323406846,1713972637207,-500.0,0.00010958,2]
[323406847,1713972637216,-500.0,0.00010958,2]
[323406848,1713972637226,-500.0,0.00010958,2]
[323406849,1713972637236,-500.0,0.00010958,2]
[323406850,1713972637246,-500.0,0.00010958,2]
[323406851,1713972637255,-506.51,0.00010958,2]
[323406852,1713972637265,-500.0,0.00010958,2]
[323406853,1713972637280,-281.13543697,0.00010958,2]
[323406854,1713972637290,-500.0,0.00010958,2]
[323406855,1713972637300,-500.0,0.00010958,2]
[323406856,1713972637310,-500.0,0.00010958,2]
[323406857,1713972637320,-500.0,0.00010958,2]
[323406858,1713972637330,-500.0,0.00010958,2]
[323406859,1713972637340,-500.0,0.00010958,2]
[323406860,1713972637351,-500.0,0.00010958,2]
[323406861,1713972637361,-500.0,0.00010958,2]
[323406862,1713972637372,-500.0,0.00010958,2]
[323406863,1713972637382,-500.0,0.00010958,2]
[323406864,1713972637394,-500.0,0.00010958,2]
[323406865,1713972637404,-186.18317291,0.00010958,2]
[323406866,1713972637414,-500.0,0.00010958,2]
[323406867,1713972637425,-500.0,0.00010958,2]
[323406868,1713972637436,-500.0,0.00010958,2]
[323406869,1713972637446,-500.0,0.00010958,2]
[323406870,1713972637456,-1000.0,0.00010958,2]
[323406871,1713972637466,-690.2,0.00010958,2]
[323406872,1713972637476,-500.0,0.00010958,2]
[323406873,1713972637486,-500.0,0.00010958,2]
[323406874,1713972637496,-500.0,0.00010958,2]
[323406875,1713972637506,-563.01,0.00010958,2]
[323406876,1713972637516,-623.79781446,0.00010958,2]
[323406877,1713972637532,-500.0,0.00010958,2]
[323406878,1713972637542,-500.0,0.00010958,2]
[323406879,1713972637551,-500.0,0.00010958,2]
[323406880,1713972637562,-500.0,0.00010958,2]
[323406881,1713972637572,-500.0,0.00010958,2]
[323406882,1713972637583,-500.0,0.00010958,2]
[323406883,1713972637593,-500.0,0.00010958,2]
[323406884,1713972637603,-500.0,0.00010958,2]
[323406885,1713972637613,-509.77,0.00010958,2]
[323406886,1713972637624,-500.0,0.00010958,2]
[323406887,1713972637633,-500.0,0.00010958,2]
[323406888,1713972637643,-500.0,0.00010958,2]
[323406889,1713972637653,-1422.67,0.00010958,2]
[323406890,1713972637664,-735.85,0.00010958,2]
[323406891,1713972637674,-500.0,0.00010958,2]
[323406892,1713972637684,-1263.24,0.00010958,2]
[323406893,1713972637699,-629.16,0.00010958,2]
[323406894,1713972637708,-500.0,0.00010958,2]
[323406895,1713972637718,-500.0,0.00010958,2]
[323406896,1713972637729,-500.0,0.00010958,2]
[323406897,1713972637739,-500.0,0.00010958,2]
[323406898,1713972637749,-500.0,0.00010958,2]
[323406899,1713972637759,-627.98,0.00010958,2]
[323406901,1713972637769,-500.0,0.00010958,2]
[323406903,1713972637784,-500.0,0.00010958,2]
[323406905,1713972637795,-500.0,0.00010958,2]
[323406907,1713972637805,-500.0,0.00010958,2]
[323406908,1713972637815,-622.25,0.00010958,2]
[323406910,1713972637825,-909.54,0.00010958,2]
[323406911,1713972637834,-500.0,0.00010958,2]
[323406912,1713972637844,-500.0,0.00010958,2]
[323406913,1713972637854,-500.0,0.00010958,2]
[323406914,1713972637864,-500.0,0.00010958,2]
[323406915,1713972637874,-500.0,0.00010958,2]
[323406916,1713972637883,-500.0,0.00010958,2]
[323406917,1713972637893,-500.0,0.00010958,2]
[323406918,1713972637903,-697.45,0.00010958,2]
[323406920,1713972637913,-500.0,0.00010958,2]
[323406922,1713972637923,-614.21,0.00010958,2]
[323406924,1713972638135,-500.0,0.00010958,2]
[323406925,1713972638144,-500.0,0.00010958,2]
[323406926,1713972638154,-500.0,0.00010958,2]
[323406927,1713972638164,-500.0,0.00010958,2]
[323406928,1713972638174,-500.0,0.00010958,2]
[323406929,1713972638184,-822.89,0.00010958,2]
[323406930,1713972638193,-500.0,0.00010958,2]
[323406931,1713972638203,-500.0,0.00010958,2]
[323406932,1713972638212,-852.16,0.00010958,2]
[323406933,1713972638221,-500.0,0.00010958,2]
[323406934,1713972638230,-500.0,0.00010958,2]
[323406935,1713972638240,-500.0,0.00010958,2]
[323406936,1713972638249,-821.2,0.00010958,2]
[323406937,1713972638260,-500.0,0.00010958,2]
[323406938,1713972638270,-500.0,0.00010958,2]
[323406939,1713972638284,-500.0,0.00010958,2]
[323406940,1713972638293,-726.75,0.00010958,2]
[323406941,1713972638303,-1185.74,0.00010958,2]
[323406942,1713972638312,-500.0,0.00010958,2]
[323406943,1713972638321,-500.0,0.00010958,2]
[323406944,1713972638330,-500.0,0.00010958,2]
[323406945,1713972638340,-500.0,0.00010958,2]
[323406946,1713972638349,-550.13,0.00010958,2]
[323406947,1713972638359,-500.0,0.00010958,2]
[323406950,1713972638369,-500.0,0.00010958,2]
[323406951,1713972638378,-500.0,0.00010958,2]
[323406952,1713972638387,-1898.55,0.00010958,2]
[323406953,1713972638397,-500.0,0.00010958,2]
[323406954,1713972638407,-500.0,0.00010958,2]
[323406955,1713972638416,-500.0,0.00010958,2]
[323406956,1713972638426,-500.0,0.00010958,2]
[323406957,1713972638436,-500.0,0.00010958,2]
[323406959,1713972638445,-500.0,0.00010958,2]
[323406961,1713972638454,-500.0,0.00010958,2]
[323406963,1713972638464,-500.0,0.00010958,2]
[323406965,1713972638473,-500.0,0.00010958,2]
[323406966,1713972638483,-500.0,0.00010958,2]
[323406967,1713972638492,-500.0,0.00010958,2]
[323406968,1713972638502,-500.0,0.00010958,2]
[323406969,1713972638512,-500.0,0.00010958,2]
[323406970,1713972638524,-500.0,0.00010958,2]
[323406971,1713972638533,-500.0,0.00010958,2]
[323406972,1713972638545,-500.0,0.00010958,2]
[323406973,1713972638555,-500.0,0.00010958,2]
[323406974,1713972638564,-2419.21,0.00010958,2]
[323406975,1713972638574,-500.0,0.00010958,2]
[323406976,1713972638584,-500.0,0.00010958,2]
[323406977,1713972638593,-500.0,0.00010958,2]
[323406978,1713972638602,-500.0,0.00010958,2]
[323406979,1713972638611,-374.91214782,0.00010958,2]
[323406980,1713972638620,-500.0,0.00010958,2]
[323406981,1713972638630,-500.0,0.00010958,2]
[323406982,1713972638639,-500.0,0.00010958,2]
[323406983,1713972638650,-500.0,0.00010958,2]
[323406984,1713972638660,-500.0,0.00010958,2]
[323406985,1713972638671,-500.0,0.00010958,2]
[323406986,1713972638680,-500.0,0.00010958,2]
[323406987,1713972638691,-500.0,0.00010958,2]
[323406988,1713972638701,-500.0,0.00010958,2]
[323406989,1713972638712,-500.0,0.00010958,2]
[323406990,1713972638723,-500.0,0.00010958,2]
[323406991,1713972638733,-500.0,0.00010958,2]
[323406992,1713972638742,-500.15,0.00010958,2]
[323406993,1713972638752,-500.0,0.00010958,2]
[323406994,1713972638763,-654.28,0.00010958,2]
[323406995,1713972638774,-1067.54,0.00010958,2]
[323406996,1713972638783,-500.0,0.00010958,2]
[323406997,1713972638793,-500.0,0.00010958,2]
[323406998,1713972638802,-613.68,0.00010958,2]
[323406999,1713972638812,-500.0,0.00010958,2]
[323407000,1713972638822,-1076.71,0.00010958,2]
[323407001,1713972638831,-3086.19,0.00010958,2]
[323407002,1713972638840,-500.0,0.00010958,2]
[323407003,1713972638850,-500.0,0.00010958,2]
[323407004,1713972638859,-500.0,0.00010958,2]
[323407005,1713972638869,-633.26,0.00010958,2]
[323407006,1713972638878,-500.0,0.00010958,2]
[323407007,1713972638888,-791.36,0.00010958,2]
[323407008,1713972638898,-500.0,0.00010958,2]
[323407009,1713972638907,-638.34082056,0.00010958,2]
[323407010,1713972638917,-696.78,0.00010958,2]
[323407011,1713972638927,-500.0,0.00010958,2]
[323407012,1713972638937,-530.27,0.00010958,2]
[323407013,1713972638946,-500.0,0.00010958,2]
[323407014,1713972638956,-500.0,0.00010958,2]
[323407015,1713972638966,-500.0,0.00010958,2]
[323407016,1713972638975,-500.0,0.00010958,2]
[323407017,1713972638985,-500.0,0.00010958,2]
[323407018,1713972638994,-500.0,0.00010958,2]
[323407019,1713972639004,-72.6530298,0.00010958,2]
[323407020,1713972639042,-427.3469702,0.00010958,2]
[323407021,1713972639051,-500.0,0.00010958,2]
[323407022,1713972639061,-306.37443735,0.00010958,2]
[323407023,1713972639073,-339.76818,0.00010958,2]
[323407024,1713972639118,-138.56738265,0.00010958,2]
[323407025,1713972639127,-500.0,0.00010958,2]
[323407026,1713972639136,-34.70881681,0.00010958,2]
[323407027,1713972639151,-465.29118319,0.00010958,2]
[323407028,1713972639160,-500.0,0.00010958,2]
[323407029,1713972639170,-425.54229898,0.00010958,2]
[323407030,1713972639181,-74.45770102,0.00010958,2]
[323407031,1713972639190,-222.72486398,0.00010958,2]
[323407032,1713972639211,-2942.69004989,0.00010958,2]
[323407033,1713972639224,-84.08508613,0.00010958,2]
[323407034,1713972639233,-500.0,0.00010958,2]
[323407035,1713972639243,-500.0,0.00010958,2]
[323407036,1713972639253,-500.0,0.00010958,2]
[323407037,1713972639262,-776.26878932,0.00010958,2]
[323407038,1713972639340,-348.84121068,0.00010958,2]
[323407039,1713972639349,-240.03321496,0.00010958,2]
[323407040,1713972639359,-15.20726672,0.00010958,2]
[323407041,1713972639372,-518.06273328,0.00010958,2]
[323407042,1713972639381,-500.0,0.00010958,2]
[323407043,1713972639391,-500.0,0.00010958,2]
[323407044,1713972639401,-1424.26,0.00010958,2]
[323407045,1713972639410,-518.6841559,0.00010958,2]
[323407046,1713972639423,-45.6158441,0.00010958,2]
[323407047,1713972639433,-238.45862877,0.00010958,2]
[323407048,1713972639444,-261.54137123,0.00010958,2]
[323407049,1713972639453,-568.9,0.00010958,2]
[323407050,1713972639463,-500.0,0.00010958,2]
[323407051,1713972639473,-500.0,0.00010958,2]
[323407052,1713972639483,-500.0,0.00010958,2]
[323407053,1713972639493,-500.0,0.00010958,2]
[323407054,1713972639502,-598.82811502,0.00010958,2]
[323407055,1713972639512,-500.0,0.00010958,2]
[323407056,1713972639524,-1394.24,0.00010958,2]
[323407057,1713972639534,-500.0,0.00010958,2]
[323407058,1713972639543,-531.28,0.00010958,2]
[323407059,1713972639553,-500.0,0.00010958,2]
[323407060,1713972639562,-500.0,0.00010958,2]
[323407061,1713972639571,-500.0,0.00010958,2]
[323407062,1713972639581,-500.0,0.00010958,2]
[323407063,1713972639590,-500.0,0.00010958,2]
[323407064,1713972639599,-500.0,0.00010958,2]
[323407065,1713972639609,-566.48,0.00010958,2]
[323407066,1713972639618,-500.0,0.00010958,2]
[323407067,1713972639627,-500.0,0.00010958,2]
[323407068,1713972639637,-500.0,0.00010958,2]
[323407069,1713972639647,-500.0,0.00010958,2]
[323407070,1713972639656,-500.0,0.00010958,2]
[323407071,1713972639665,-500.0,0.00010958,2]
[323407072,1713972639675,-48.50771375,0.00010958,2]
[323407073,1713972639689,-451.49228625,0.00010958,2]
[323407074,1713972639700,-500.0,0.00010958,2]
[323407075,1713972639710,-500.0,0.00010958,2]
[323407076,1713972639719,-1372.53,0.00010958,2]
[323407077,1713972639731,-500.0,0.00010958,2]
[323407078,1713972639741,-500.0,0.00010958,2]
[323407079,1713972639751,-500.0,0.00010958,2]
[323407080,1713972639761,-557.81,0.00010958,2]
[323407081,1713972639775,-500.0,0.00010958,2]
[323407082,1713972639786,-500.0,0.00010958,2]
[323407083,1713972639796,-500.0,0.00010958,2]
[323407084,1713972639806,-500.0,0.00010958,2]
[323407085,1713972639815,-500.0,0.00010958,2]
[323407086,1713972639825,-500.0,0.00010958,2]
[323407087,1713972639835,-500.0,0.00010958,2]
[323407088,1713972639844,-500.0,0.00010958,2]
[323407089,1713972639853,-744.39327985,0.00010958,2]
[323407090,1713972639866,-335.62672015,0.00010958,2]
[323407091,1713972639876,-500.0,0.00010958,2]
[323407092,1713972639887,-1230.02,0.00010958,2]
[323407093,1713972639898,-3100.35327985,0.00010958,2]
[323407094,1713972639915,-342.67672015,0.00010958,2]
[323407095,1713972639924,-1228.13,0.00010958,2]
[323407096,1713972639934,-500.0,0.00010958,2]
[323407097,1713972639944,-500.0,0.00010958,2]
[323407098,1713972639954,-500.0,0.00010958,2]
[323407099,1713972639968,-500.0,0.00010958,2]
[323407100,1713972639995,-500.0,0.00010958,2]
[323407101,1713972640039,-157.01543514,0.00010958,2]
[323407102,1713972640079,-500.0,0.00010958,2]
[323407103,1713972640121,-500.0,0.00010958,2]
[323407104,1713972640139,-500.0,0.00010958,2]
[323407105,1713972640149,-500.0,0.00010958,2]
[323407106,1713972640159,-505.77659193,0.00010958,2]
[323407107,1713972640169,-299.28485546,0.00010958,2]
[323407108,1713972640179,-500.0,0.00010958,2]
[323407109,1713972640190,-1268.11,0.00010958,2]
[323407110,1713972640200,-500.0,0.00010958,2]
[323407111,1713972640208,-500.0,0.00010958,2]
[323407112,1713972640218,-665.52,0.00010958,2]
[323407113,1713972640227,-1096.66,0.00010958,2]
[323407114,1713972640237,-500.0,0.00010958,2]
[323407115,1713972640247,-500.0,0.00010958,2]
[323407116,1713972640258,-500.0,0.00010958,2]
[323407117,1713972640268,-500.0,0.00010958,2]
[323407118,1713972640280,-500.0,0.00010958,2]
[323407119,1713972640290,-500.0,0.00010958,2]
[323407120,1713972640300,-500.0,0.00010958,2]
[323407121,1713972640310,-624.74,0.00010958,2]
[323407122,1713972640320,-500.0,0.00010958,2]
[323407123,1713972640330,-845.37,0.00010958,2]
[323407124,1713972640340,-2620.88,0.00010958,2]
[323407125,1713972640351,-500.0,0.00010958,2]
[323407126,1713972640360,-772.01,0.00010958,2]
[323407127,1713972640372,-500.0,0.00010958,2]
[323407128,1713972640382,-500.0,0.00010958,2]
[323407129,1713972640392,-500.0,0.00010958,2]
[323407130,1713972640402,-500.0,0.00010958,2]
[323407131,1713972640411,-978.64,0.00010958,2]
[323407132,1713972640420,-3073.52,0.00010958,2]
[323407133,1713972640430,-500.0,0.00010958,2]
[323407134,1713972640440,-500.0,0.00010958,2]
[323407135,1713972640450,-500.0,0.00010958,2]
[323407136,1713972640459,-500.0,0.00010958,2]
[323407137,1713972640469,-500.0,0.00010958,2]
[323407138,1713972640478,-292.35377934,0.00010958,2]
[323407139,1713972640491,-207.64622066,0.00010958,2]
[323407140,1713972640501,-500.0,0.00010958,2]
[323407141,1713972640511,-271.73377934,0.00010958,2]
[323407142,1713972641064,-887.87622066,0.00010958,2]
[323407143,1713972641074,-500.0,0.00010958,2]
[323407144,1713972641084,-500.0,0.00010958,2]
[323407145,1713972641093,-500.0,0.00010958,2]
[323407146,1713972641103,-500.0,0.00010958,2]
[323407147,1713972641112,-861.87,0.00010958,2]
[323407148,1713972641121,-500.0,0.00010958,2]
[323407149,1713972641131,-500.0,0.00010958,2]
[323407150,1713972641140,-500.0,0.00010958,2]
[323407151,1713972641149,-500.0,0.00010958,2]
[323407152,1713972641158,-500.0,0.00010958,2]
[323407153,1713972641167,-2570.33267473,0.00010958,2]
[323407154,1713972641179,-230.50732527,0.00010958,2]
[323407155,1713972641189,-500.0,0.00010958,2]
[323407156,1713972641197,-500.0,0.00010958,2]
[323407157,1713972641207,-500.0,0.00010958,2]
[323407158,1713972641216,-908.49267481,0.00010958,2]
[323407159,1713972641228,-411.90732519,0.00010958,2]
[323407160,1713972641237,-500.0,0.00010958,2]
[323407161,1713972641247,-500.0,0.00010958,2]
[323407162,1713972641256,-500.0,0.00010958,2]
[323407163,1713972641265,-500.0,0.00010958,2]
[323407164,1713972641277,-710.12,0.00010958,2]
[323407165,1713972641287,-500.0,0.00010958,2]
[323407166,1713972641296,-833.98,0.00010958,2]
[323407167,1713972641305,-1307.58,0.00010958,2]
[323407168,1713972641315,-1246.57,0.00010958,2]
[323407169,1713972641324,-500.0,0.00010958,2]
[323407170,1713972641334,-141.3523976,0.00010958,2]
[323407171,1713972641346,-358.6476024,0.00010958,2]
[323407172,1713972641355,-393.70271516,0.00010958,2]
[323407173,1713972641367,-106.29728484,0.00010958,2]
[323407174,1713972641376,-500.0,0.00010958,2]
[323407175,1713972641386,-2265.84623752,0.00010958,2]
[323407176,1713972641397,-904.36376248,0.00010958,2]
[323407177,1713972641406,-500.0,0.00010958,2]
[323407178,1713972641416,-500.0,0.00010958,2]
[323407179,1713972641425,-500.0,0.00010958,2]
[323407180,1713972641434,-314.68673389,0.00010958,2]
[323407181,1713972641445,-185.31326611,0.00010958,2]
[323407182,1713972641455,-500.0,0.00010958,2]
[323407183,1713972641465,-563.85,0.00010958,2]
[323407184,1713972641475,-500.0,0.00010958,2]
[323407185,1713972641485,-500.0,0.00010958,2]
[323407186,1713972641494,-3116.59,0.00010958,2]
[323407187,1713972641504,-550.23,0.00010958,2]
[323407188,1713972641513,-500.0,0.00010958,2]
[323407189,1713972641524,-500.0,0.00010958,2]
[323407190,1713972641533,-500.0,0.00010958,2]
[323407191,1713972641543,-845.5,0.00010958,2]
[323407192,1713972641552,-500.0,0.00010958,2]
[323407193,1713972641561,-548.11,0.00010958,2]
[323407194,1713972641571,-1358.18,0.00010958,2]
[323407195,1713972641580,-500.0,0.00010958,2]
[323407196,1713972641589,-4812.56,0.00010958,2]
[323407197,1713972641598,-500.0,0.00010958,2]
[323407198,1713972641607,-500.0,0.00010958,2]
[323407199,1713972641617,-500.0,0.00010958,2]
[323407200,1713972641626,-620.64,0.00010958,2]
[323407201,1713972641635,-1248.75,0.00010958,2]
[323407202,1713972641645,-500.0,0.00010958,2]
[323407203,1713972641654,-500.0,0.00010958,2]
[323407204,1713972641663,-500.0,0.00010958,2]
[323407205,1713972641674,-500.0,0.00010958,2]
[323407206,1713972641684,-1085.54,0.00010958,2]
[323407207,1713972641693,-3695.85,0.00010958,2]
[323407208,1713972641702,-500.0,0.00010958,2]
[323407209,1713972641714,-500.0,0.00010958,2]
[323407210,1713972641724,-500.0,0.00010958,2]
[323407211,1713972641734,-4345.73,0.00010958,2]
[323407212,1713972641745,-500.0,0.00010958,2]
[323407213,1713972641755,-1113.63,0.00010958,2]
[323407214,1713972641764,-500.0,0.00010958,2]
[323407215,1713972641774,-500.0,0.00010958,2]
[323407216,1713972641784,-1838.97,0.00010958,2]
[323407217,1713972641793,-19689.72,0.00010958,2]
[323407218,1713972641803,-931.39,0.00010958,2]
[323407219,1713972641813,-13159.88,0.00010958,2]
[323407220,1713972641823,-934.35,0.00010958,2]
[323407221,1713972641832,-500.0,0.00010958,2]
[323407222,1713972641842,-500.0,0.00010958,2]
[323407223,1713972641852,-500.0,0.00010958,2]
[323407224,1713972641861,-500.0,0.00010958,2]
[323407225,1713972641871,-2828.5,0.00010958,2]
[323407226,1713972641881,-4719.15,0.00010958,2]
[323407227,1713972641891,-2388.43,0.00010958,2]
[323407228,1713972641900,-1617.75,0.00010958,2]
[323407229,1713972641911,-500.0,0.00010958,2]
[323407230,1713972641920,-1854.7,0.00010958,2]
[323407231,1713972641930,-500.0,0.00010958,2]
[323407232,1713972641939,-1115.25,0.00010958,2]
[323407233,1713972641949,-11881.79,0.00010958,2]
[323407234,1713972641959,-500.0,0.00010958,2]
[323407235,1713972641968,-500.0,0.00010958,2]
[323407236,1713972641979,-500.0,0.00010958,2]
[323407237,1713972641989,-500.0,0.00010958,2]
[323407238,1713972641998,-2868.9,0.00010958,2]
[323407239,1713972642008,-5730.95,0.00010958,2]
[323407240,1713972642017,-500.0,0.00010958,2]
[323407241,1713972642029,-1256.99,0.00010958,2]
[323407242,1713972642038,-4920.04,0.00010958,2]
[323407243,1713972642047,-500.0,0.00010958,2]
[323407244,1713972642057,-500.0,0.00010958,2]
[323407245,1713972642066,-8052.36,0.00010958,2]
[323407246,1713972642075,-555.41,0.00010958,2]
[323407247,1713972642085,-500.0,0.00010958,2]
[323407248,1713972642094,-597.11,0.00010958,2]
[323407249,1713972642104,-500.0,0.00010958,2]
[323407250,1713972642114,-723.01,0.00010958,2]
[323407251,1713972642123,-500.0,0.00010958,2]
[323407252,1713972642132,-500.0,0.00010958,2]
[323407253,1713972642142,-500.0,0.00010958,2]
[323407254,1713972642152,-9736.21,0.00010958,2]
[323407255,1713972642162,-3304.8,0.00010958,2]
[323407256,1713972642171,-1058.73,0.00010958,2]
[323407257,1713972642181,-500.0,0.00010958,2]
[323407258,1713972642190,-500.0,0.00010958,2]
[323407259,1713972642199,-500.0,0.00010958,2]
[323407260,1713972642209,-500.0,0.00010958,2]
[323407261,1713972642218,-500.0,0.00010958,2]
[323407262,1713972642227,-790.94,0.00010958,2]
[323407263,1713972642237,-4539.95,0.00010958,2]
[323407264,1713972642246,-500.0,0.00010958,2]
[323407265,1713972642256,-500.0,0.00010958,2]
[323407266,1713972642265,-1301.34,0.00010958,2]
[323407267,1713972642276,-500.0,0.00010958,2]
[323407268,1713972642285,-500.0,0.00010958,2]
[323407269,1713972642295,-687.37,0.00010958,2]
[323407270,1713972642305,-500.0,0.00010958,2]
[323407271,1713972642314,-16038.23,0.00010958,2]
[323407272,1713972642323,-500.0,0.00010958,2]
[323407273,1713972642332,-855.99,0.00010958,2]
[323407274,1713972642342,-500.0,0.00010958,2]